bitfinex-derivatives/quotes_SOLF0:USTF0_20250109
["timestamp","ask_amount","ask_price","bid_price","bid_amount"]
[1736434762648,12.14838671,188.94,188.89,2.6483]
[1736434764050,2.648,188.92,188.89,2.6483]
[1736434764755,2.6478,188.94,188.86,12.14838671]
[1736434764951,12.14838671,188.96,188.83,13.66348671]
[1736434765152,12.14838671,188.93,188.82,3.0586]
[1736434765750,2.6484,188.9,188.86,2.6488]
[1736434765946,1.5927,188.93,188.82,3.0586]
[1736434766451,12.14838671,188.92,188.82,3.0586]
[1736434766754,2.6484,188.9,188.86,2.6489]
[1736434768147,2.6487,188.88,188.84,2.649]
[1736434768452,12.14838671,188.92,188.82,3.0586]
[1736434768852,2.6485,188.89,188.86,2.6489]
[1736434769858,2.6485,188.89,188.82,3.0586]
[1736434770058,2.6485,188.89,188.82,5.7079]
[1736434771058,12.14838671,188.92,188.82,5.7079]
[1736434771265,2.6484,188.9,188.82,5.7079]
[1736434771451,12.14838671,188.92,188.82,2.6494]
[1736434772461,2.6486,188.88,188.8,12.14838671]
[1736434772956,2.6488,188.87,188.82,2.6494]
[1736434773158,12.14838671,188.92,188.78,1.5151]
[1736434773356,12.14838671,188.89,188.77,12.14838671]
[1736434773559,2.6492,188.84,188.79,2.6499]
[1736434774460,2.6492,188.84,188.8,2.6497]
[1736434774655,2.6489,188.86,188.77,12.14838671]
[1736434776262,2.6489,188.86,188.81,2.6495]
[1736434776964,6.8327,188.93,188.79,2.6497]
[1736434776965,12.14838671,188.89,188.79,2.6497]
[1736434777358,12.14838671,188.89,188.76,15.35478671]
[1736434777561,2.6492,188.84,188.76,15.35478671]
[1736434777761,2.6492,188.84,188.8,2.6497]
[1736434778066,2.649,188.86,188.79,12.14838671]
[1736434778764,2.649,188.86,188.82,2.6493]
[1736434779661,2.649,188.86,188.83,2.6492]
[1736434781069,2.649,188.86,188.82,2.6494]
[1736434781367,2.649,188.86,188.82,10.40857537]
[1736434781868,2.649,188.86,188.82,7.75917537]
[1736434782066,2.649,188.86,188.76,3.2064]
[1736434782273,2.649,188.86,188.81,7.75917537]
[1736434782464,2.649,188.86,188.82,2.6494]
[1736434782769,2.6489,188.86,188.81,7.75917537]
[1736434783770,1.5927,188.93,188.76,3.2064]
[1736434783771,2.6492,188.84,188.76,3.2064]
[1736434784064,7.75917537,188.87,188.79,7.75917537]
[1736434784667,2.6493,188.83,188.79,2.6498]
[1736434784970,2.6493,188.83,188.79,7.75917537]
[1736434785472,2.6492,188.84,188.8,2.6496]
[1736434785666,2.6492,188.84,188.79,7.75917537]
[1736434787271,7.75917537,188.85,188.72,1.5896]
[1736434787573,7.75917537,188.81,188.74,7.75917537]
[1736434787765,7.75917537,188.81,188.75,2.6503]
[1736434787971,2.65,188.79,188.75,2.6503]
[1736434788465,7.75917537,188.79,188.71,30.37336113]
[1736434788670,2.6503,188.76,188.73,10.40987537]
[1736434788967,7.75917537,188.79,188.73,10.40987537]
[1736434789471,7.75917537,188.79,188.73,7.75917537]
[1736434789768,21.78516727,188.9,188.71,1.4857]
[1736434789769,2.6495,188.82,188.77,7.75917537]
[1736434789963,7.75917537,188.87,188.8,7.75917537]
[1736434790363,7.75917537,188.87,188.82,2.6493]
[1736434790567,10.89597537,188.89,188.82,7.75917537]
[1736434790773,7.75917537,188.87,188.8,7.75917537]
[1736434791274,3.1368,188.89,188.79,12.12292444]
[1736434791477,1.617,188.89,188.79,12.12292444]
[1736434791675,2.6487,188.88,188.83,2.6492]
[1736434792170,1.617,188.89,188.83,2.6492]
[1736434792376,2.6489,188.87,188.83,2.6492]
[1736434792875,2.6489,188.87,188.79,12.12292444]
[1736434792876,4.2655,188.89,188.85,2.649]
[1736434793769,2.6485,188.89,188.85,2.649]
[1736434794771,2.6491,188.85,188.77,3.072]
[1736434794967,12.12292444,188.9,188.77,15.19492444]
[1736434795376,12.12292444,188.9,188.83,2.6492]
[1736434795977,2.6488,188.87,188.83,2.6492]
[1736434797383,12.12292444,188.9,188.83,2.6492]
[1736434797580,12.12292444,188.87,188.81,2.6494]
[1736434797777,12.12292444,188.87,188.77,15.19492444]
[1736434797983,2.6489,188.86,188.77,15.19492444]
[1736434798178,2.6489,188.86,188.82,2.6494]
[1736434800579,2.649,188.85,188.8,2.6497]
[1736434800774,2.649,188.85,188.77,15.19492444]
[1736434801279,2.649,188.85,188.77,13.64532444]
[1736434801479,12.12292444,188.84,188.74,13.65642444]
[1736434801886,2.6496,188.81,188.76,2.6502]
[1736434802183,12.12292444,188.84,188.71,13.71012444]
[1736434802382,2.65,188.79,188.75,2.6504]
[1736434802684,12.12292444,188.84,188.71,13.71012444]
[1736434802883,2.65,188.78,188.74,2.6506]
[1736434803085,12.12292444,188.81,188.71,13.71012444]
[1736434803283,3.1486,188.85,188.71,12.12292444]
[1736434803484,3.1486,188.85,188.74,12.12292444]
[1736434804081,3.1486,188.85,188.78,2.6499]
[1736434804276,12.12292444,188.83,188.71,12.12292444]
[1736434804681,2.6499,188.79,188.71,12.12292444]
[1736434805083,2.6499,188.79,188.73,2.6506]
[1736434805278,12.12292444,188.83,188.71,12.12292444]
[1736434805786,2.65,188.79,188.71,12.12292444]
[1736434806485,3.1486,188.85,188.71,12.12292444]
[1736434806875,3.1486,188.85,188.74,12.12292444]
[1736434807294,2.6495,188.82,188.78,2.65]
[1736434807584,12.12292444,188.83,188.71,12.12292444]
[1736434808186,3.1486,188.85,188.71,12.12292444]
[1736434808584,2.6493,188.83,188.79,2.6498]
[1736434809185,2.6492,188.84,188.8,2.6497]
[1736434809681,12.12292444,188.84,188.74,12.12292444]
[1736434809887,12.12292444,188.84,188.71,12.12292444]
[1736434810287,2.6496,188.81,188.77,2.65]
[1736434810488,12.12292444,188.84,188.71,12.12292444]
[1736434810891,12.12292444,188.84,188.74,12.12292444]
[1736434811088,3.1486,188.85,188.74,12.12292444]
[1736434811286,2.6492,188.84,188.8,2.6496]
[1736434811883,14.77212444,188.84,188.8,2.6496]
[1736434812192,14.77212444,188.84,188.71,12.12292444]
[1736434812193,12.12292444,188.84,188.71,12.12292444]
[1736434812391,12.12292444,188.84,188.74,12.12292444]
[1736434812591,2.6494,188.83,188.71,12.12292444]
[1736434813291,14.77212444,188.84,188.71,12.12292444]
[1736434814391,5.7976,188.85,188.74,12.12292444]
[1736434815190,3.1486,188.85,188.74,12.12292444]
[1736434815490,1.582,188.85,188.75,1.5209]
[1736434816785,4.231,188.85,188.81,2.6495]
[1736434817389,7.76405312,188.82,188.81,2.6495]
[1736434817993,7.76405312,188.84,188.82,2.6494]
[1736434818889,2.6486,188.88,188.85,2.6489]
[1736434819094,7.76405312,188.86,188.75,3.0517]
[1736434819397,7.76405312,188.86,188.78,7.76405312]
[1736434819698,7.76405312,188.82,188.75,1.5209]
[1736434819989,7.76405312,188.82,188.74,7.76405312]
[1736434820190,7.76405312,188.82,188.79,2.6498]
[1736434820593,1.5898,188.9,188.74,7.76405312]
[1736434820787,7.76405312,188.82,188.72,28.88766113]
[1736434821091,7.76405312,188.82,188.71,1.5466]
[1736434821092,10.41365312,188.82,188.71,1.5466]
[1736434821488,7.76405312,188.8,188.73,7.76405312]
[1736434821894,7.76405312,188.8,188.78,2.6499]
[1736434822187,7.76405312,188.8,188.71,1.5466]
[1736434822391,7.76405312,188.76,188.7,7.76405312]
[1736434822595,7.76405312,188.78,188.7,7.76405312]
[1736434822997,7.76405312,188.78,188.75,2.6503]
[1736434823397,7.76405312,188.78,188.67,7.22191528]
[1736434823398,12.13570443,188.78,188.67,7.22191528]
[1736434823588,12.13570443,188.74,188.65,7.22191528]
[1736434824198,12.13570443,188.71,188.65,9.87361528]
[1736434824796,14.78670443,188.71,188.59,4.6515]
[1736434824996,14.78670443,188.71,188.61,12.13570443]
[1736434825196,12.13570443,188.71,188.61,12.13570443]
[1736434825397,12.13570443,188.71,188.66,2.6516]
[1736434827194,12.13570443,188.71,188.61,12.13570443]
[1736434827195,14.78670443,188.71,188.61,12.13570443]
[1736434827401,12.13570443,188.68,188.59,4.6515]
[1736434827801,14.78720443,188.68,188.61,2.6523]
[1736434827996,14.78720443,188.68,188.59,4.6515]
[1736434828199,12.13570443,188.68,188.59,3.1286]
[1736434828399,12.13570443,188.68,188.55,12.13570443]
[1736434829201,2.6517,188.66,188.55,12.13570443]
[1736434831100,2.6517,188.66,188.61,2.6523]
[1736434831405,12.13570443,188.68,188.55,12.13570443]
[1736434831703,2.6516,188.67,188.61,2.6523]
[1736434832002,2.6507,188.74,188.64,12.13570443]
[1736434832308,15.17290443,188.76,188.64,12.13570443]
[1736434833001,12.13570443,188.73,188.61,12.13570443]
[1736434834107,2.6509,188.72,188.67,2.6514]
[1736434834502,12.13570443,188.73,188.61,12.13570443]
[1736434834698,2.6511,188.71,188.66,2.6517]
[1736434835107,12.13570443,188.73,188.61,12.13570443]
[1736434835307,2.6514,188.69,188.64,2.6518]
[1736434835503,12.13570443,188.73,188.61,12.13570443]
[1736434836004,2.6509,188.72,188.67,2.6515]
[1736434836404,12.13570443,188.73,188.61,12.13570443]
[1736434836599,14.78640443,188.73,188.68,2.6513]
[1736434836801,15.17290443,188.76,188.64,12.13570443]
[1736434837102,15.17290443,188.76,188.71,2.651]
[1736434837704,15.17290443,188.76,188.64,12.13570443]
[1736434838306,15.17290443,188.76,188.62,4.732]
[1736434838507,2.651,188.71,188.67,2.6515]
[1736434838910,12.13570443,188.7,188.62,4.732]
[1736434839108,12.13570443,188.67,188.55,12.13570443]
[1736434840400,2.6518,188.66,188.55,12.13570443]
[1736434840605,12.13570443,188.67,188.55,12.13570443]
[1736434840804,2.6517,188.66,188.61,2.6523]
[1736434841200,12.13570443,188.67,188.55,12.13570443]
[1736434841406,2.6519,188.65,188.6,2.6525]
[1736434841611,12.13570443,188.67,188.55,12.13570443]
[1736434841908,2.6521,188.63,188.58,2.6527]
[1736434842116,12.13570443,188.67,188.55,12.13570443]
[1736434842507,2.6521,188.63,188.55,12.13570443]
[1736434842706,2.6521,188.63,188.46,17.44470443]
[1736434842707,12.13570443,188.64,188.52,12.13570443]
[1736434842922,12.13570443,188.61,188.49,12.13570443]
[1736434843413,12.13570443,188.61,188.54,2.6533]
[1736434843608,12.13570443,188.61,188.49,12.13570443]
[1736434844207,17.37570443,188.64,188.52,12.13570443]
[1736434845714,2.6523,188.62,188.56,2.653]
[1736434845914,2.6523,188.62,188.52,12.13570443]
[1736434846814,2.6522,188.63,188.58,2.6528]
[1736434847016,17.37570443,188.64,188.52,12.13570443]
[1736434847715,17.37570443,188.64,188.6,2.6525]
[1736434847911,1.5659,188.69,188.58,12.13570443]
[1736434848305,4.2172,188.69,188.64,2.6519]
[1736434849512,1.5659,188.69,188.58,12.13570443]
[1736434849721,2.6516,188.67,188.57,4.5542]
[1736434850206,2.6516,188.67,188.62,2.6521]
[1736434850511,2.6516,188.67,188.57,4.5542]
[1736434851618,12.13570443,188.73,188.6,12.13570443]
[1736434852217,2.6511,188.71,188.63,2.652]
[1736434852420,12.13570443,188.73,188.6,12.13570443]
[1736434852614,12.13570443,188.69,188.57,4.5542]
[1736434852814,12.13570443,188.69,188.62,2.6522]
[1736434853720,2.6516,188.67,188.63,2.6521]
[1736434854620,12.13570443,188.66,188.57,3.0264]
[1736434854822,12.13570443,188.63,188.52,12.13570443]
[1736434855120,2.6524,188.61,188.5,4.6917]
[1736434855319,12.13570443,188.63,188.5,4.6917]
[1736434855515,12.13570443,188.63,188.56,2.653]
[1736434856114,12.13570443,188.63,188.5,4.6917]
[1736434856115,12.13570443,188.6,188.5,4.6917]
[1736434856619,12.13570443,188.64,188.5,4.6917]
[1736434856821,24.27140886,188.51,188.42,86.83959743]
[1736434857016,1.06100795,188.5,188.39,200.91592165]
[1736434857216,12.13570443,188.45,188.39,200.91592165]
[1736434857817,6.48100795,188.5,188.31,4.7131]
[1736434857818,12.13570443,188.42,188.31,4.7131]
[1736434858516,95.82060076,188.41,188.31,4.7131]
[1736434858720,12.13570443,188.4,188.31,4.7131]
[1736434858908,183.15446085,188.35,188.31,4.7131]
[1736434859107,146.52703499,188.32,188.31,4.7131]
[1736434859310,138.23453499,188.32,188.31,7.3697]
[1736434859620,95.82060076,188.4,188.31,7.3697]
[1736434860817,53.23366709,188.4,188.31,7.3697]
[1736434861015,72.73544246,188.4,188.31,7.3697]
[1736434861623,72.73544246,188.4,188.31,4.7131]
[1736434861814,72.73544246,188.4,188.01,19.50177537]
[1736434861815,19.50177537,188.34,188.24,1.4932]
[1736434862517,5.4,188.35,188.24,1.4932]
[1736434862718,255.88990331,188.4,188.25,2.999]
[1736434862916,236.38812794,188.4,188.26,19.50177537]
[1736434863124,236.38812794,188.4,188.29,19.50177537]
[1736434863320,219.65323386,188.44,188.29,19.50177537]
[1736434863516,219.65323386,188.44,188.33,2.6563]
[1736434863717,5.4,188.45,188.34,1.5622]
[1736434863923,19.50177537,188.43,188.34,1.5622]
[1736434864419,22.15677537,188.43,188.34,1.5622]
[1736434864819,19.50177537,188.43,188.36,2.6559]
[1736434865321,19.50177537,188.43,188.37,2.6558]
[1736434865523,19.50177537,188.46,188.34,1.5622]
[1736434865822,19.50177537,188.49,188.34,1.5622]
[1736434866120,19.50177537,188.46,188.34,1.5622]
[1736434866329,19.50177537,188.43,188.34,1.5622]
[1736434867924,19.50177537,188.46,188.25,2.999]
[1736434867925,19.50177537,188.37,188.25,2.999]
[1736434868128,19.50177537,188.37,188.26,1.5232]
[1736434868928,19.50177537,188.37,188.31,2.6566]
[1736434869528,22.15757537,188.37,188.29,2.6568]
[1736434869721,19.50177537,188.4,188.26,21.02497537]
[1736434870023,5.4,188.42,188.26,21.02497537]
[1736434870231,5.4,188.42,188.36,2.6559]
[1736434871721,5.4,188.42,188.27,5.4]
[1736434871722,19.50177537,188.39,188.2,5.34491704]
[1736434871928,19.50177537,188.39,188.28,1.5497]
[1736434872328,19.50177537,188.46,188.28,21.05147537]
[1736434872546,19.50177537,188.46,188.31,19.50177537]
[1736434872829,150.48258082,188.53,188.34,19.50177537]
[1736434873019,19.50177537,188.51,188.35,5.42]
[1736434873220,22.15557537,188.51,188.44,2.6546]
[1736434873438,19.50177537,188.54,188.37,19.50177537]
[1736434873636,145.06258082,188.6,188.38,1.5497]
[1736434873637,19.50177537,188.51,188.38,1.5497]
[1736434874130,19.50177537,188.55,188.38,1.5497]
[1736434874131,19.50177537,188.43,188.38,1.5497]
[1736434874323,19.50177537,188.43,188.32,1.6215]
[1736434874727,2.6551,188.42,188.36,2.6558]
[1736434874921,24.92177537,188.46,188.32,21.12327537]
[1736434875227,5.42,188.46,188.41,2.6551]
[1736434875625,5.42,188.46,188.33,1.545]
[1736434876726,5.42,188.46,188.36,2.6558]
[1736434876930,19.50177537,188.49,188.33,1.545]
[1736434877832,19.50177537,188.49,188.34,5.4]
[1736434878131,19.50177537,188.49,188.42,2.6549]
[1736434878820,19.50177537,188.49,188.39,2.6554]
[1736434879526,19.50177537,188.49,188.33,1.545]
[1736434879730,19.50177537,188.52,188.35,19.50177537]
[1736434879927,19.50177537,188.52,188.42,2.655]
[1736434880429,19.50177537,188.49,188.35,19.50177537]
[1736434880635,19.50177537,188.49,188.4,2.6552]
[1736434880931,19.50177537,188.49,188.35,19.50177537]
[1736434881133,2.6543,188.48,188.35,19.50177537]
[1736434881326,19.50177537,188.52,188.35,19.50177537]
[1736434881827,19.50177537,188.49,188.35,19.50177537]
[1736434882030,19.50177537,188.49,188.33,1.545]
[1736434882329,2.6543,188.48,188.33,1.545]
[1736434882928,19.50177537,188.49,188.33,1.545]
[1736434883127,19.50177537,188.43,188.33,1.545]
[1736434883328,19.50177537,188.4,188.33,1.545]
[1736434883531,19.50177537,188.4,188.32,1.6215]
[1736434883532,19.50177537,188.37,188.3,1.5497]
[1736434883729,19.50177537,188.4,188.3,1.5497]
[1736434884130,2.6552,188.41,188.3,1.5497]
[1736434884336,2.6552,188.41,188.31,1.5755]
[1736434885130,19.50177537,188.43,188.31,1.5755]
[1736434885338,19.50177537,188.46,188.31,1.5755]
[1736434885530,19.50177537,188.46,188.4,2.6553]
[1736434885734,22.15637537,188.46,188.4,2.6553]
[1736434885929,19.50177537,188.46,188.4,2.6553]
[1736434886135,19.50177537,188.49,188.32,19.50177537]
[1736434886332,19.50177537,188.49,188.31,1.5755]
[1736434886333,2.6541,188.5,188.35,19.50177537]
[1736434886536,19.50177537,188.52,188.36,6.9792]
[1736434887133,19.50177537,188.55,188.38,19.50177537]
[1736434887336,27.86243694,188.54,188.41,19.50177537]
[1736434887530,2.6535,188.53,188.41,19.50177537]
[1736434887842,27.86243694,188.54,188.41,19.50177537]
[1736434888135,30.51583694,188.54,188.41,19.50177537]
[1736434888340,27.86243694,188.54,188.39,3.0866]
[1736434888638,2.6544,188.47,188.39,3.0866]
[1736434888840,19.50177537,188.49,188.42,2.6549]
[1736434889039,19.50177537,188.49,188.39,3.0866]
[1736434889233,19.50177537,188.52,188.39,3.0866]
[1736434889430,2.6539,188.5,188.44,2.6547]
[1736434890342,2.6539,188.5,188.39,3.0866]
[1736434890643,19.50177537,188.52,188.39,3.0866]
[1736434891341,2.654,188.5,188.39,3.0866]
[1736434892143,2.654,188.5,188.45,2.6545]
[1736434892443,2.654,188.5,188.39,3.0866]
[1736434892642,2.6538,188.51,188.39,3.0866]
[1736434893342,2.6538,188.51,188.46,2.6544]
[1736434894041,19.50177537,188.55,188.4,19.50177537]
[1736434895548,2.6535,188.54,188.44,2.6547]
[1736434895746,2.6535,188.54,188.4,19.50177537]
[1736434896142,19.50177537,188.58,188.43,19.50177537]
[1736434896342,145.82734263,188.59,188.46,19.50177537]
[1736434896543,145.82734263,188.61,188.49,19.50177537]
[1736434896746,145.82734263,188.61,188.5,1.4788]
[1736434897045,165.329118,188.61,188.5,1.4788]
[1736434897245,19.50177537,188.58,188.47,3.1329]
[1736434897547,19.50177537,188.61,188.47,1.6167]
[1736434897843,19.50177537,188.61,188.48,3.0316]
[1736434898447,19.50177537,188.58,188.48,1.4788]
[1736434898843,19.50177537,188.55,188.38,1.5528]
[1736434899046,19.50177537,188.55,188.39,8.4076]
[1736434899343,2.6535,188.54,188.48,2.6541]
[1736434899649,19.50177537,188.55,188.48,2.6541]
[1736434900250,2.6536,188.53,188.48,2.6541]
[1736434900453,19.50177537,188.55,188.39,8.4076]
[1736434900454,19.50177537,188.55,188.46,2.6544]
[1736434900750,2.6539,188.51,188.46,2.6544]
[1736434901341,2.6537,188.52,188.48,2.6542]
[1736434901743,19.50177537,188.55,188.39,8.4076]
[1736434901941,2.6541,188.49,188.42,2.6549]
[1736434902143,2.6541,188.49,188.39,8.4076]
[1736434902542,19.50177537,188.52,188.39,8.4076]
[1736434903152,2.6541,188.49,188.39,8.4076]
[1736434903448,19.50177537,188.49,188.39,3.0676]
[1736434903654,2.6548,188.44,188.31,21.09107537]
[1736434903848,19.50177537,188.46,188.32,3.1555]
[1736434904049,19.50177537,188.43,188.32,3.1555]
[1736434904248,2.6554,188.4,188.35,2.656]
[1736434904444,19.50177537,188.43,188.32,1.6039]
[1736434904650,2.6556,188.38,188.3,63.75620519]
[1736434904844,19.50177537,188.37,188.25,3.1555]
[1736434905956,19.50177537,188.34,188.25,3.1555]
[1736434906157,2.6565,188.33,188.26,2.6572]
[1736434906355,2.6565,188.33,188.25,3.1555]
[1736434906557,19.50177537,188.34,188.25,3.1555]
[1736434906757,19.50177537,188.34,188.19,19.50177537]
[1736434907054,10.21,188.33,188.2,4.6973]
[1736434907455,10.21,188.33,188.28,2.657]
[1736434907657,10.21,188.33,188.2,4.6973]
[1736434908363,19.50177537,188.31,188.2,4.6973]
[1736434908558,2.6566,188.31,188.25,2.6574]
[1736434908761,10.21,188.33,188.2,4.6973]
[1736434908961,10.21,188.33,188.22,19.50177537]
[1736434909161,10.21,188.33,188.32,2.6565]
[1736434909667,24.82177537,188.43,188.25,19.50177537]
[1736434909966,24.82177537,188.43,188.35,2.656]
[1736434910165,24.82177537,188.43,188.25,19.50177537]
[1736434910367,24.82177537,188.43,188.32,2.6564]
[1736434910368,19.50177537,188.4,188.32,2.6564]
[1736434910665,2.6561,188.35,188.24,5.32]
[1736434910864,19.50177537,188.37,188.24,5.32]
[1736434911062,19.50177537,188.37,188.32,2.6564]
[1736434911966,19.50177537,188.37,188.24,5.32]
[1736434912167,19.50177537,188.37,188.2,9.9973]
[1736434912371,19.50177537,188.37,188.22,19.50177537]
[1736434912568,19.50177537,188.37,188.31,2.6566]
[1736434912869,22.15767537,188.37,188.31,2.6566]
[1736434913069,19.50177537,188.37,188.29,2.6568]
[1736434913460,19.50177537,188.37,188.2,9.9973]
[1736434913766,19.50177537,188.34,188.2,9.9973]
[1736434913964,2.6568,188.3,188.2,4.6973]
[1736434914171,19.50177537,188.31,188.2,4.6973]
[1736434915073,19.50177537,188.34,188.2,4.6973]
[1736434915664,5.3,188.35,188.2,4.6973]
[1736434916166,5.3,188.35,188.22,19.50177537]
[1736434916367,31.73177537,188.4,188.22,19.50177537]
[1736434916685,2.6557,188.38,188.25,19.50177537]
[1736434916864,19.50177537,188.37,188.22,19.50177537]
[1736434917263,2.6563,188.34,188.22,19.50177537]
[1736434917666,2.6564,188.33,188.2,4.6973]
[1736434917872,19.50177537,188.34,188.2,4.6973]
[1736434918566,2.6563,188.33,188.24,2.6576]
[1736434918768,19.50177537,188.34,188.2,4.6973]
[1736434919475,24.78177537,188.34,188.2,4.6973]
[1736434919671,19.50177537,188.31,188.2,4.6973]
[1736434919972,19.50177537,188.31,188.23,2.6576]
[1736434919973,2.657,188.28,188.23,2.6576]
[1736434920172,19.50177537,188.31,188.2,3.1768]
[1736434920870,2.657,188.29,188.24,2.6575]
[1736434921270,14.44,188.29,188.2,3.1768]
[1736434921673,2.6571,188.28,188.23,2.6577]
[1736434921871,14.44,188.29,188.2,3.1768]
[1736434922072,17.0969,188.29,188.22,2.6578]
[1736434922273,14.44,188.29,188.2,3.1768]
[1736434922467,19.50177537,188.28,188.2,1.6383]
[1736434922670,19.50177537,188.28,188.21,2.658]
[1736434923478,2.6576,188.25,188.21,2.658]
[1736434923974,19.50177537,188.25,188.14,3.2556]
[1736434924281,31.39177537,188.25,188.18,2.6583]
[1736434925074,2.6581,188.21,188.17,2.6586]
[1736434925281,19.50177537,188.22,188.17,2.6586]
[1736434925577,19.50177537,188.22,188.09,3.111]
[1736434926179,31.39177537,188.25,188.09,3.111]
[1736434926378,2.6578,188.23,188.13,2.659]
[1736434926573,2.6578,188.23,188.09,3.111]
[1736434926574,11.89,188.25,188.09,3.111]
[1736434926768,31.39177537,188.25,188.09,3.111]
[1736434926974,19.50177537,188.22,188.09,3.111]
[1736434927375,2.6585,188.18,188.12,2.6592]
[1736434927571,19.50177537,188.16,188.06,65.1986124]
[1736434927977,19.50177537,188.16,188.12,2.6593]
[1736434928479,2.659,188.15,188.09,2.6596]
[1736434928694,2.659,188.15,188.05,5.34917626]
[1736434929081,2.659,188.15,188.09,2.6596]
[1736434929580,19.50177537,188.13,188.06,2.66]
[1736434929776,19.50177537,188.13,188.02,4.7675]
[1736434929972,2.659,188.14,188.02,4.7675]
[1736434930181,19.50177537,188.16,188.02,4.7675]
[1736434930577,2.659,188.14,188.08,2.6598]
[1736434930877,19.50177537,188.16,188.02,4.7675]
[1736434931184,19.50177537,188.13,188.02,4.7675]
[1736434931379,19.50177537,188.13,188.04,2.6604]
[1736434931878,19.50177537,188.13,188.02,3.1316]
[1736434932082,2.6597,188.1,188.05,2.6602]
[1736434932484,19.50177537,188.13,188.02,1.5286]
[1736434932782,2.66,188.08,188.03,2.6605]
[1736434932986,2.66,188.08,187.97,1.6392]
[1736434933281,19.50177537,188.1,187.97,3.1985]
[1736434933883,2.6598,188.09,187.97,3.1985]
[1736434934279,2.6598,188.09,188.03,2.6604]
[1736434934482,2.66,188.08,188.03,2.6604]
[1736434934683,19.50177537,188.1,187.97,3.1985]
[1736434934983,5.32,188.14,187.97,1.5593]
[1736434934984,2.6604,188.05,187.97,1.5593]
[1736434935185,19.50177537,188.07,187.92,3.2701]
[1736434935380,19.50177537,188.04,187.96,2.6614]
[1736434935685,19.50177537,188.01,187.92,1.6392]
[1736434935884,19.50177537,188.01,187.95,2.6617]
[1736434936082,5.3,188.06,187.92,1.6392]
[1736434936283,82.94,188.15,187.92,21.14097537]
[1736434936583,2.6598,188.09,188.03,2.6604]
[1736434936975,19.50177537,188.1,187.96,1.6309]
[1736434937383,10.3,188.1,188.02,19.50177537]
[1736434937590,10.3,188.1,188.03,3.2606]
[1736434938382,10.3,188.1,188.03,5.9211]
[1736434938583,29.80177537,188.1,187.96,1.6309]
[1736434938882,29.80177537,188.1,187.97,3.146]
[1736434939086,10.3,188.1,187.99,19.50177537]
[1736434939286,10.3,188.1,188.07,2.66]
[1736434939480,10.3,188.1,187.99,19.50177537]
[1736434940185,10.3,188.1,187.97,3.146]
[1736434940381,29.80177537,188.1,187.97,3.146]
[1736434940687,19.50177537,188.07,187.97,3.146]
[1736434941089,29.80177537,188.1,187.97,3.146]
[1736434941288,10.3,188.1,187.98,19.50177537]
[1736434941488,10.3,188.1,188.01,2.6608]
[1736434941684,10.3,188.1,187.98,19.50177537]
[1736434942385,10.3,188.1,188.01,19.50177537]
[1736434943489,10.3,188.1,188.09,2.6597]
[1736434943690,10.3,188.1,188.01,19.50177537]
[1736434944793,10.3,188.1,188.09,2.6597]
[1736434945388,19.50177537,188.19,188.04,19.50177537]
[1736434945593,19.50177537,188.22,188.07,19.50177537]
[1736434945889,19.50177537,188.22,188.08,3.1154]
[1736434946089,5.34,188.23,188.08,3.1154]
[1736434946390,5.34,188.23,188.08,8.4554]
[1736434946592,2.658,188.22,188.15,2.6587]
[1736434946791,19.53,188.23,188.08,8.4554]
[1736434947091,19.50177537,188.22,188.08,8.4554]
[1736434947290,19.53,188.23,188.08,8.4554]
[1736434947493,14.68,188.22,188.1,19.50177537]
[1736434947695,14.68,188.22,188.21,2.658]
[1736434948086,14.68,188.22,188.14,1.6239]
[1736434948396,14.68,188.22,188.2,2.6581]
[1736434948992,14.68,188.22,188.14,1.6239]
[1736434949292,14.68,188.22,188.21,2.658]
[1736434949694,14.68,188.22,188.14,1.6239]
[1736434950687,14.68,188.22,188.16,2.6587]
[1736434950991,34.18177537,188.22,188.07,19.50177537]
[1736434951192,19.50177537,188.19,188.09,2.9972]
[1736434951389,2.6588,188.16,188.11,2.6593]
[1736434951594,19.50177537,188.19,188.09,1.5004]
[1736434951794,19.50177537,188.16,188.05,5.32]